Cogmind - Beta 11 X6 @@@ ROGUE MODE // 2021.08.05 @ 23:42:00 Player: aperiodic Result: Destroyed by H-77 Assassin with Coil Gun Performance ------------- Evolutions (6) 3000 Regions Visited (30) 6000 Robots Destroyed (296) 1480 Value Destroyed (8063) 8063 Prototype IDs (122) 2440 Alien Tech Used (2) 400 Bonus (2985) 2985 TOTAL SCORE: 24368 Bonus ------- High Alert Combat Kills 1223 Follower Combat Kills 1037 Aligned with FarCom 300 Met Data Miner 300 Met Zhirov 300 Read Decrypted Archives 300 Friendly Fire -475 Cogmind --------- Core Integrity 0/1150 Matter 210/300 Energy 80/100 System Corruption 0% Temperature Cool (0) Movement Core (50) Location -4/Hub_04(d) Parts ------- > --- POWER (1) -------- (None) > --- PROPULSION (4) --- (None) > --- UTILITY (12) ----- Advanced Coolant Injector Advanced Coolant Injector Inertial Stasis Machine Experimental Signal Interpreter Transport Network Coupler Advanced Melee Analysis Suite Nanoactuators Advanced Hacking Suite Advanced System Shield > --- WEAPON (2) ------- Kinetic Spear > --- INVENTORY (5) ---- Precision Energy Filter Quantum Capacitor EM Dispersion Field CR-A16's Pointy Stick Peak State ------------ > --- POWER ------------ Mini Fusion Reactor > --- PROPULSION ------- Cooled Nuclear Pulse Thruster Cooled Nuclear Pulse Thruster Cooled Nuclear Pulse Thruster Experimental Cesium-ion Thruster > --- UTILITY ---------- Inertial Stasis Machine Structural Scanner Experimental Sensor Array Experimental Signal Interpreter Experimental Utility Shielding EM Dispersion Field Advanced Hacking Suite Advanced Hacking Suite Advanced Hacking Suite Experimental Hacking Suite Advanced System Shield Advanced System Shield > --- WEAPON ----------- Mini Smartbomb Launcher Plasma Lance > --- INVENTORY -------- Large Storage Unit Quantum Capacitor Transdimensional Reconstructor Heavy Plasma Cannon [Rating: 133] Favorites ----------- Power Mini Fusion Reactor Engine Improved Ion Engine Power Core Micro Fission Core Reactor Mini Fusion Reactor Propulsion Cooled Nuclear Pulse Thruster Treads Light Treads Leg Advanced Myomer Leg Wheel Wheel Hover Unit Improved Gyrokinetic Inverter Flight Unit Cooled Nuclear Pulse Thruster Utility Advanced Hacking Suite Device Structural Scanner Storage Large Storage Unit Processor Experimental Signal Interpreter Hackware Advanced Hacking Suite Protection Experimental Utility Shielding Weapon Heavy Assault Rifle Energy Cannon Advanced Beam Cannon Ballistic Gun Heavy Assault Rifle Launcher Precision Grenade Launcher Special Weapon Remote Datajack Slashing Weapon Axe Piercing Weapon CR-A16's Pointy Stick Build | -11 -10 -10 -9 -9 -9 -8 -8 -7 -7 -7 -6 -6 -6 -6 -6 -6 -6 -5 -5 -5 -5 -5 -5 -5 -4 -4 -4 -4 -4 -4 ------- Run | Scr Mat Min Mat Min Exi Min Mat Fac Low Dat Pro Fac Was Fac Low Low Zio Pro Fac Was Fac Upp Upp Zhi Pro Fac Ext Cet Arc Hub Slots Evolved 12 | . . . 2 . . . 2 2 . . . 2 . . . . . . 2 . . . . . . 2 . . . . Power . | . . . . . . . . . . . . . . . . . . . . . . . . . . . . . . . Propulsion 2 | . . . . . . . . . . . . . . . . . . . 1 . . . . . . 1 . . . . Utility 10 | . . . 2 . . . 2 2 . . . 2 . . . . . . 1 . . . . . . 1 . . . . Weapon . | . . . . . . . . . . . . . . . . . . . . . . . . . . . . . . . Parts Attached 301 | 7 32 10 40 . 23 4 6 30 4 . . 16 . 4 1 . 1 . 17 . 14 2 1 5 1 35 19 1 . 28 Power 22 | 1 1 . 3 . 2 . 2 2 . . . . . 1 . . . . 1 . 1 . . . . 2 3 . . 3 Engine 9 | 1 1 . 3 . 1 . 1 . . . . . . . . . . . . . . . . . . . 2 . . . Core 8 | . . . . . 1 . 1 2 . . . . . 1 . . . . 1 . . . . . . . 1 . . 1 Reactor 5 | . . . . . . . . . . . . . . . . . . . . . 1 . . . . 2 . . . 2 Propulsion 68 | 3 12 6 12 . 4 . . 9 . . . 2 . 1 . . . . 2 . 3 . . 2 . 5 3 . . 4 Treads 15 | . 4 3 6 . 2 . . . . . . . . . . . . . . . . . . . . . . . . . Leg 3 | . . . . . 2 . . 1 . . . . . . . . . . . . . . . . . . . . . . Wheel 23 | 3 8 3 5 . . . . 3 . . . . . . . . . . . . . . . . . . . . . 1 Hover 2 | . . . . . . . . . . . . . . . . . . . . . . . . 1 . . . . . 1 Flight 25 | . . . 1 . . . . 5 . . . 2 . 1 . . . . 2 . 3 . . 1 . 5 3 . . 2 Utility 85 | 1 2 . 5 . 9 . 2 11 1 . . 10 . 2 1 . . . 8 . 7 . . 3 . 6 4 1 . 12 Device 34 | . 1 . . . 3 . 1 3 . . . 3 . 1 . . . . 3 . 5 . . 2 . 3 1 1 . 7 Storage 10 | 1 1 . . . 3 . . . . . . . . . . . . . . . . . . 1 . 1 1 . . 2 Processor 9 | . . . 1 . 2 . . . . . . . . 1 . . . . 1 . 1 . . . . . 1 . . 2 Hackware 20 | . . . . . . . . 6 1 . . 6 . . . . . . 3 . 1 . . . . 2 . . . 1 Protection 12 | . . . 4 . 1 . 1 2 . . . 1 . . 1 . . . 1 . . . . . . . 1 . . . Artifact . | . . . . . . . . . . . . . . . . . . . . . . . . . . . . . . . Weapon 126 | 2 17 4 20 . 8 4 2 8 3 . . 4 . . . . 1 . 6 . 3 2 1 . 1 22 9 . . 9 Energy Gun . | . . . . . . . . . . . . . . . . . . . . . . . . . . . . . . . Energy Cannon 22 | . . . 2 . 3 2 . . . . . . . . . . . . 2 . 1 2 . . . 9 . . . 1 Ballistic Gun 37 | 2 12 2 10 . 4 . 2 3 . . . . . . . . . . . . . . . . . . . . . 2 Ballistic Cannon . | . . . . . . . . . . . . . . . . . . . . . . . . . . . . . . . Launcher 31 | . 2 1 6 . 1 2 . 1 2 . . 2 . . . . . . 1 . 1 . 1 . . 5 4 . . 2 Special Weapon 12 | . 3 1 2 . . . . 1 . . . 1 . . . . . . 1 . 1 . . . . 2 . . . . Impact Weapon . | . . . . . . . . . . . . . . . . . . . . . . . . . . . . . . . Slashing Weapon 5 | . . . . . . . . 3 1 . . 1 . . . . . . . . . . . . . . . . . . Piercing Weapon 19 | . . . . . . . . . . . . . . . . . 1 . 2 . . . . . 1 6 5 . . 4 Special Melee Weapon . | . . . . . . . . . . . . . . . . . . . . . . . . . . . . . . . Unidentified Prototypes 17 | . . . 2 . 6 . . 4 . . . . . . . . . . . . . . . 3 . . 1 . . 1 Parts Lost 43 | . . . 7 . 9 . . 1 . . . . . . . . . 1 1 . . . . . . . 12 2 . 10 Power 7 | . . . 1 . 1 . . . . . . . . . . . . . . . . . . . . . 3 . . 2 Propulsion 12 | . . . 2 . 3 . . . . . . . . . . . . . . . . . . . . . 4 . . 3 Utility 18 | . . . 2 . 2 . . 1 . . . . . . . . . 1 1 . . . . . . . 5 2 . 4 Weapon 6 | . . . 2 . 3 . . . . . . . . . . . . . . . . . . . . . . . . 1 Highest Loss Streak 9 | . . . 2 . 9 . . 1 . . . . . . . . . 1 1 . . . . . . . 5 3 . 6 Average Slot Usage (%) 92 | . 95 100 92 100 91 100 89 92 100 100 100 98 100 100 100 100 100 99 98 100 98 94 94 93 94 97 73 35 31 64 Engine 3 | . 13 14 9 11 10 . 4 . . . . . . . . . . . . . . . . . . . . . . . Core 2 | . . . . . . 11 4 7 7 7 7 6 6 6 6 6 6 6 5 5 4 . . . . . 1 5 5 2 Reactor 1 | . . . . . . . . . . . . . . . . . . . . . . 5 5 5 5 4 2 . . 1 Treads 3 | . 3 9 9 22 15 . . . . . . . . . . . . . . . . . . . . . . . . . Leg 2 | . . . . . 5 22 18 6 . . . . . . . . . . . . . . . . . . . . . . Wheel 3 | . 24 18 12 . . . . 6 . . . . . . . . . . . . . . . . . . . . . 2 Flight 8 | . . . . . . . . 1 15 15 15 13 13 13 13 13 13 13 17 17 16 17 17 17 17 20 11 . . 1 Device 10 | . 10 14 11 11 7 11 10 9 15 15 15 12 13 12 13 13 13 12 8 11 11 11 11 10 11 10 9 7 5 17 Storage 5 | . 14 14 11 11 8 11 9 6 . . . . . . . . . . . . . . . . . . 5 5 5 5 Processor 6 | . . . 5 11 17 22 18 1 . . . . . 6 6 6 6 6 5 5 5 5 5 5 5 5 8 5 5 9 Hackware 22 | . . . . . . . . 29 46 46 46 48 53 46 41 40 40 40 42 41 41 41 41 41 41 41 20 12 10 10 Protection 4 | . . . 10 11 8 . 6 6 . . . 3 . . 4 6 6 6 5 5 5 5 5 5 5 5 2 . . . Energy Cannon 2 | . . . 3 11 6 20 . . . . . . . . . . . . . . . . . . . 3 . . . . Ballistic Gun 6 | . 26 27 18 11 10 . 17 11 . . . . . . . . . . . . . . . . . . . . . 1 Launcher 1 | . . . . . . 1 . . 2 7 7 4 6 6 6 6 6 5 . 5 2 . 3 5 4 . 2 . . . Piercing Weapon 2 | . . . . . . . . . . . . . . . . . 4 6 4 5 5 5 1 . . 4 6 . . 4 Naked Turns . | . . . . . . . . . . . . . . . . . . . . . . . . . . . . . . . Heaviest Build 74 | 13 32 32 39 38 49 49 74 63 16 16 16 18 16 16 17 17 17 17 16 16 18 14 15 15 15 39 39 17 15 50 Greatest Support 60 | 26 40 40 40 40 60 60 60 60 22 22 22 23 23 23 23 23 23 23 16 16 16 16 16 16 16 39 41 19 19 46 Greatest Overweight (x) 19 | . 2 3 3 . . . 1 19 . . . . . . . . . . . . 1 . . 1 . 1 1 . . 2 Average Overweight (x) . | . . 1 . . . . . . . . . . . . . . . . . . . . . . . . . . . . Largest Inventory Capacity 20 | 8 15 15 15 15 20 15 15 15 5 5 5 5 5 5 5 5 5 5 5 5 5 5 5 5 5 15 15 10 10 15 Average Capacity 9 | 7 12 15 15 15 12 15 15 13 5 5 5 5 5 5 5 5 5 5 5 5 5 5 5 5 5 5 10 10 10 11 Most Carried 15 | 6 15 15 15 15 15 13 15 15 5 5 5 5 5 5 5 4 5 4 5 5 5 5 5 5 5 10 11 10 10 15 Average Carried 8 | 4 9 15 14 15 9 12 14 13 5 5 5 4 4 4 4 4 4 4 3 5 4 4 5 4 5 4 9 9 10 10 Final Capacity 15 | 8 15 15 15 15 15 15 15 5 5 5 5 5 5 5 5 5 5 5 5 5 5 5 5 5 5 15 10 10 10 5 Final Carried 15 | 6 15 15 15 15 12 12 15 5 5 5 5 5 5 5 4 4 4 4 5 5 5 5 5 5 5 10 10 10 10 5 Class Distribution -------------------- 26% | Scavenger-Mutant 23% | Wizard-Scout 22% | Wizard-Sprinter 14% | Mutant 8% | Hacker-Mutant 4% | Hacker-Sprinter Dominant Class ---------------- Mutant | -10/Materials Mutant | -10/Mines Mutant | -9/Materials Scavenger-Mutant | -9/Mines Scavenger-Mutant | -9/Exiles Scavenger-Mutant | -8/Mines Scavenger-Mutant | -8/Materials Hacker-Mutant | -7/Factory Wizard-Sprinter | -7/Lower Caves Wizard-Sprinter | -7/Data Miner Wizard-Sprinter | -6/Proximity Caves Wizard-Sprinter | -6/Factory Wizard-Sprinter | -6/Waste Wizard-Sprinter | -6/Factory Wizard-Sprinter | -6/Lower Caves Wizard-Sprinter | -6/Lower Caves Wizard-Sprinter | -6/Zion Wizard-Sprinter | -5/Proximity Caves Wizard-Sprinter | -5/Factory Wizard-Scout | -5/Waste Wizard-Scout | -5/Factory Wizard-Scout | -5/Upper Caves Wizard-Scout | -5/Upper Caves Wizard-Scout | -5/Zhirov Wizard-Scout | -4/Proximity Caves Wizard-Scout | -4/Factory Hacker-Sprinter | -4/Extension Hacker-Mutant | -4/Cetus Hacker-Mutant | -4/Archives Hacker-Mutant | -4/Hub_04(d) Resources | -11 -10 -10 -9 -9 -9 -8 -8 -7 -7 -7 -6 -6 -6 -6 -6 -6 -6 -5 -5 -5 -5 -5 -5 -5 -4 -4 -4 -4 -4 -4 ----------- Run | Scr Mat Min Mat Min Exi Min Mat Fac Low Dat Pro Fac Was Fac Low Low Zio Pro Fac Was Fac Upp Upp Zhi Pro Fac Ext Cet Arc Hub Matter Collected 7726 | 338 402 471 805 99 429 140 492 491 55 . 99 228 . 70 88 26 . 78 189 . 102 36 219 . 43 812 1575 . . 439 Remotely . | . . . . . . . . . . . . . . . . . . . . . . . . . . . . . . . Salvage Created 11391 | 114 442 336 1466 . 144 423 1128 536 53 . 55 272 . 125 73 81 . 115 211 . 54 . 34 . . 1526 3123 . . 1080 Parts 624 | 6 44 30 104 1 10 20 73 39 5 . 11 19 . 13 3 3 . 8 11 . 6 . 4 . . 59 116 . . 39 Haulers Intercepted 27 | . 2 . 5 . . . 3 2 . . . . . . . . . . . . . . . . . 6 6 . . 3 Recyclers Shooed 12 | 1 1 . 3 . . . 1 1 . . . . . . . . . . . . 1 . . . . 2 . . . 2 Parts Field Recycled . | . . . . . . . . . . . . . . . . . . . . . . . . . . . . . . . Retrieved Matter . | . . . . . . . . . . . . . . . . . . . . . . . . . . . . . . . Parts Self-Destructed 45 | . . . . . . . . . 5 . 10 . . . 8 3 . 6 . . . . 13 . . . . . . . Prevented . | . . . . . . . . . . . . . . . . . . . . . . . . . . . . . . . Kills | -11 -10 -10 -9 -9 -9 -8 -8 -7 -7 -7 -6 -6 -6 -6 -6 -6 -6 -5 -5 -5 -5 -5 -5 -5 -4 -4 -4 -4 -4 -4 ------- Run | Scr Mat Min Mat Min Exi Min Mat Fac Low Dat Pro Fac Was Fac Low Low Zio Pro Fac Was Fac Upp Upp Zhi Pro Fac Ext Cet Arc Hub Combat Hostiles Destroyed 168 | . 10 8 27 1 7 13 12 6 4 . 6 5 . . 4 2 . 3 . . . . 5 . . 10 29 . . 16 Melee 8 | . . . . . 1 . . . . . . . . . . . . . . . . . . . . 1 3 . . 3 Guns 48 | . 8 6 16 1 . . 11 6 . . . . . . . . . . . . . . . . . . . . . . Cannons 9 | . . . 2 . . 7 . . . . . . . . . . . . . . . . . . . . . . . . AOE 102 | . 2 2 8 . 6 6 1 . 4 . 6 5 . . 4 2 . 3 . . . . 5 . . 9 26 . . 13 Classes Destroyed 21 | 2 6 . 3 . 1 . 3 2 1 . . . . . . . . . . . . . . . . . 3 . . . Worker 34 | . 1 2 3 . . 2 1 1 . . . 3 . 3 . . . . . . 2 . . . . 7 7 . . 2 Builder 9 | . 2 1 1 . . . . . . . . . . . . . . . . . . . . . . 1 3 . . 1 Tunneler 11 | 3 . 4 . . . . 1 . . . . . . . . . . . . . 1 . . . . 1 1 . . . Hauler 27 | . 2 . 5 . . . 3 2 . . . . . . . . . . . . . . . . . 6 6 . . 3 Recycler 27 | 1 1 1 2 . . 1 1 . . . . 1 . . . . . . 1 . . . . . . 5 11 . . 2 Minesweeper 1 | . . . . . . . . . 1 . . . . . . . . . . . . . . . . . . . . . Mechanic 3 | . . . . . . . 1 . . . . 1 . . . . . . . . . . . . . . 1 . . . Operator 4 | . . . 1 . . . 3 . . . . . . . . . . . . . . . . . . . . . . . Watcher 17 | . 3 . 4 . . . . 2 . . . . . 2 . . . 1 2 . . . . . . 1 1 . . 1 Swarmer 70 | . 8 6 7 1 . 7 . . 4 . 6 5 . . 3 . . 1 . . . . 5 . . 5 6 . . 6 Saboteur 1 | . . . . . . . . . . . . . . . . . . . . . . . . . . . 1 . . . Grunt 60 | . 2 2 12 . . 6 8 3 . . . . . . 1 1 . 2 . . . . . . . 5 13 . . 5 Brawler 1 | . . . . . . . . . . . . . . . . . . . . . . . . . . . 1 . . . Duelist 3 | . . . . . . . 1 . . . . . . . . 1 . . . . . . . . . . 1 . . . Protector 1 | . . . 1 . . . . . . . . . . . . . . . . . . . . . . . . . . . Sentry 12 | . . . 7 . . . 2 1 . . . . . . . . . . . . . . . . . . 1 . . 1 Hunter 9 | . . . . . . . . 1 . . . . . . . . . . . . . . . . . . 4 . . 4 Programmer 1 | . . . . . . . . 1 . . . . . . . . . . . . . . . . . . . . . . Heavy 1 | . . . . . . . 1 . . . . . . . . . . . . . . . . . . . . . . . Behemoth 2 | . . . . . . . . . . . . . . . . . . . . . . . . . . . 2 . . . Assembled 6 | . . . . . 6 . . . . . . . . . . . . . . . . . . . . . . . . . Savage 1 | . . . . . . . . . . . . . . . . . . . . . . . . . . . 1 . . . Best Kill Streak 24 | 4 3 3 8 1 6 4 4 2 5 . 3 3 . 2 4 2 . 3 1 . 1 . 5 . . 8 24 . . 13 Combat Bots Only 13 | . 3 3 7 1 6 4 4 2 4 . 3 3 . . 4 2 . 3 . . . . 5 . . 5 13 . . 10 Max Kills in Single Turn 4 | 1 2 2 3 1 3 2 2 2 3 . 2 2 . 1 1 1 . 1 1 . 1 . 3 . . 4 3 . . 4 Gunslinging 1 | . 1 . . . . . . 1 . . . . . . . . . . . . . . . . . . . . . . Exploded 4 | . 1 2 3 . 3 2 1 . 3 . 2 2 . . 1 1 . 1 . . . . 3 . . 4 3 . . 4 Melee 1 | . . . . . 1 . . . . . . . . . . . . . . . . . . . . 1 1 . . 1 Uniques/NPCs Destroyed 1 | . . . . . 1 . . . . . . . . . . . . . . . . . . . . . . . . . 8R-AWN (-9/Exiles) Combat | -11 -10 -10 -9 -9 -9 -8 -8 -7 -7 -7 -6 -6 -6 -6 -6 -6 -6 -5 -5 -5 -5 -5 -5 -5 -4 -4 -4 -4 -4 -4 -------- Run | Scr Mat Min Mat Min Exi Min Mat Fac Low Dat Pro Fac Was Fac Low Low Zio Pro Fac Was Fac Upp Upp Zhi Pro Fac Ext Cet Arc Hub Damage Taken 8518 | . 206 179 996 38 1211 279 412 466 60 . 29 128 . 76 61 . . 231 177 . . . 111 . 81 382 1281 374 41 1699 Core 2039 | . 46 61 118 8 166 35 69 90 13 . 1 30 . 56 22 . . 66 82 . . . 57 . 24 124 348 195 41 387 Absorbed by Shields 417 | . . . . . . . . . . . . . . . . . . . . . . . . . . . 417 . . . Core Remaining (%) 72 | 100 . 57 . . . 18 87 . . . 85 . . . . . . 79 . . . . . . 83 . . . . . Volleys Fired 553 | 17 48 37 90 2 66 24 44 34 2 . 6 10 . . 6 2 . 9 7 . 7 4 4 . . 58 62 . . 14 Largest 2 | 2 2 2 2 2 2 2 2 2 1 . 1 1 . . 1 1 . 1 1 . 1 1 1 . . 1 1 . . 2 Hottest 250 | 40 100 100 100 91 250 136 60 60 36 . 36 36 . . 36 36 . 36 90 . 90 90 80 . . 90 90 . . 80 Shots Fired 858 | 34 90 72 168 4 94 46 88 67 2 . 6 10 . . 6 2 . 9 7 . 8 4 4 . . 58 62 . . 17 Gun 561 | 34 84 69 140 2 72 . 88 66 . . . . . . . . . . . . . . . . . . . . . 6 Cannon 140 | . . . 17 2 18 43 . . . . . . . . . . . . 3 . 8 4 . . . 39 6 . . . Launcher 139 | . 2 2 9 . 4 3 . . 2 . 6 6 . . 6 2 . 9 . . . . 4 . . 17 56 . . 11 Special 18 | . 4 1 2 . . . . 1 . . . 4 . . . . . . 4 . . . . . . 2 . . . . Kinetic 561 | 34 84 69 140 2 72 . 88 66 . . . . . . . . . . . . . . . . . . . . . 6 Thermal 147 | . 4 1 19 2 18 43 . . . . . . . . . . . . 3 . 8 4 . . . 39 6 . . . Explosive 139 | . 2 2 9 . 4 3 . . 2 . 6 6 . . 6 2 . 9 . . . . 4 . . 17 56 . . 11 Electromagnetic . | . . . . . . . . . . . . . . . . . . . . . . . . . . . . . . . Robot Hit Streak 22 | 6 15 5 22 1 15 16 7 9 11 . 13 15 . . 3 . . 3 7 . . . 8 . . 14 10 . . 12 Robot Miss Streak 7 | 4 4 4 7 3 3 3 4 4 . . . 1 . . . 1 . 2 . . . . . . . 2 1 . . 1 Penetration Max 1 | . . . . . . . 1 1 . . . . . . . . . . . . . . . . . . . . . 1 Secondary Targets 7 | . 1 1 3 . . . 1 1 . . . . . . . . . . . . . . . . . . . . . . Max Gunslinging Chain 1 | . 1 1 1 . . . 1 1 . . . . . . . . . . . . . . . . . . . . . . Shots Hit Robots 533 | 16 50 38 103 1 56 27 56 43 5 . 2 11 . 7 3 . . 4 8 . 4 . 1 . . 29 44 . . 25 Core Hits 519 | 6 23 19 56 1 33 19 31 18 6 . 8 12 . 5 5 5 . 12 3 . 3 . 10 . . 45 138 . . 61 Critical Kills 25 | . . 2 2 . . . 12 9 . . . . . . . . . . . . . . . . . . . . . . Critical Parts Destroyed 28 | . 1 . . . . . 16 11 . . . . . . . . . . . . . . . . . . . . . . Critical Strikes 64 | . 1 2 2 . . . 30 22 . . . 1 . . . . . . . . 1 . . . . 2 1 . . 2 Meltdown 1 | . . . 1 . . . . . . . . . . . . . . . . . . . . . . . . . . . Destroy 56 | . 1 2 1 . . . 30 22 . . . . . . . . . . . . . . . . . . . . . . Sever 1 | . . . . . . . . . . . . 1 . . . . . . . . . . . . . . . . . . Puncture 6 | . . . . . . . . . . . . . . . . . . . . . 1 . . . . 2 1 . . 2 Melee Attacks 231 | . . . . . . . . 8 6 . . 14 . 20 . 1 . 5 31 . 17 2 . . . 65 33 . . 29 Impact . | . . . . . . . . . . . . . . . . . . . . . . . . . . . . . . . Slashing 49 | . . . . . . . . 8 6 . . 14 . 20 . 1 . . . . . . . . . . . . . . Piercing 182 | . . . . . . . . . . . . . . . . . . 5 31 . 17 2 . . . 65 33 . . 29 Sneak Attacks 50 | . . . . . . . . . 1 . . 5 . 2 . . . 1 3 . 4 . . . . 14 15 . . 5 Combat Hostiles 4 | . . . . . . . . . . . . . . . . . . . . . . . . . . . 4 . . . Follow-up Attacks 3 | . . . . . . . . . . . . . . . . . . . . . . . . . . . 3 . . . Damage Inflicted 32942 | 194 794 627 2269 13 1238 965 1508 820 457 . 534 1118 . 432 549 193 . 814 400 . 453 . 763 . . 4504 10577 . . 3720 Guns 5851 | 194 685 581 1431 13 797 . 1173 789 . . . . . . . . . . . . . . . . . . . . . 188 Cannons 1019 | . . . 258 . . 554 . . . . . . . . . . . . . . . . . . . 71 136 . . . Explosions 17678 | . 109 46 577 . 439 411 335 . 294 . 534 395 . . 549 193 . 684 . . . . 763 . . 2431 7490 . . 2428 Melee 8389 | . . . . . . . . 31 163 . . 723 . 432 . . . 130 400 . 453 . . . . 2002 2951 . . 1104 Ramming 5 | . . . 3 . 2 . . . . . . . . . . . . . . . . . . . . . . . . . Kinetic 5851 | 194 685 581 1431 13 797 . 1173 789 . . . . . . . . . . . . . . . . . . . . . 188 Thermal 1937 | . . . 258 . 92 726 158 . . . . . . . . . . . . . . . . . . 567 136 . . . Explosive 16760 | . 109 46 577 . 347 239 177 . 294 . 534 395 . . 549 193 . 684 . . . . 763 . . 1935 7490 . . 2428 Electromagnetic . | . . . . . . . . . . . . . . . . . . . . . . . . . . . . . . . Impact . | . . . . . . . . . . . . . . . . . . . . . . . . . . . . . . . Slashing 1349 | . . . . . . . . 31 163 . . 723 . 432 . . . . . . . . . . . . . . . . Piercing 7040 | . . . . . . . . . . . . . . . . . . 130 400 . 453 . . . . 2002 2951 . . 1104 Highest Corruption 8 | . . . 1 1 1 1 . 2 2 2 2 . . . . . . . . 8 8 . . . . . 1 1 1 1 Average Corruption 1 | . . . 1 1 1 1 . 2 2 2 2 . . . . . . . . 8 6 . . . . . 1 1 1 1 Corruption Purged 9 | . . . . . . . . . . . . . . . . . . . . . 8 . . . . . . . . 1 Effects 48 | . . . 5 . 8 2 . 5 1 . 3 . . . . . . . . 1 19 . . . . . 3 1 . . Message Errors 22 | . . . 3 . 6 1 . 3 . . 2 . . . . . . . . . 4 . . . . . 2 1 . . Matter Fused 5 | . . . . . . . . . . . . . . . . . . . . . 5 . . . . . . . . . Heat Flow Errors 3 | . . . . . . . . . 1 . 1 . . . . . . . . . 1 . . . . . . . . . Energy Discharges 8 | . . . 1 . 1 . . . . . . . . . . . . . . . 5 . . . . . 1 . . . Parts Rejected 1 | . . . . . . . . . . . . . . . . . . . . . 1 . . . . . . . . . Data Loss (minor) 7 | . . . . . 1 1 . 2 . . . . . . . . . . . 1 2 . . . . . . . . . Misfires 1 | . . . . . . . . . . . . . . . . . . . . . 1 . . . . . . . . . Weapon Failures 1 | . . . 1 . . . . . . . . . . . . . . . . . . . . . . . . . . . Overload Shots . | . . . . . . . . . . . . . . . . . . . . . . . . . . . . . . . Overflow Damage 1244 | . . . . . 19 3 15 . 77 . 82 170 . 58 24 . . 15 81 . 32 . . . . 307 275 . . 86 Projectiles 3 | . . . . . . 1 . . . . . . . . . . . . . . . . . . . . 2 . . . Explosions 580 | . . . . . 19 2 15 . . . 82 29 . . 24 . . 15 . . . . . . . 112 196 . . 86 Melee 661 | . . . . . . . . . 77 . . 141 . 58 . . . . 81 . 32 . . . . 195 77 . . . Knockbacks . | . . . . . . . . . . . . . . . . . . . . . . . . . . . . . . . Impact . | . . . . . . . . . . . . . . . . . . . . . . . . . . . . . . . Kinetic . | . . . . . . . . . . . . . . . . . . . . . . . . . . . . . . . Secondary . | . . . . . . . . . . . . . . . . . . . . . . . . . . . . . . . Self-Inflicted Damage 255 | . . . . . 21 . . . . . 3 31 . . 30 . . 52 . . . . . . . . 118 . . . Shots 9 | . . . . . 2 . . . . . 1 1 . . 2 . . 1 . . . . . . . . 2 . . . Rammed 3 | . . . 2 . 1 . . . . . . . . . . . . . . . . . . . . . . . . . Targets Rammed 4 | . . . 2 . 2 . . . . . . . . . . . . . . . . . . . . . . . . . Kicked . | . . . . . . . . . . . . . . . . . . . . . . . . . . . . . . . Crushed 1 | . . . . . 1 . . . . . . . . . . . . . . . . . . . . . . . . . Highest Temperature 462 | . 40 20 234 104 462 81 180 90 190 . 256 6 . . . . . 4 72 . 216 150 86 . . 220 208 . . 66 Average Temperature 57 | . 15 10 59 56 75 26 71 33 104 . 132 4 . . . . . 2 26 . 109 68 38 . . 57 47 . . 25 Received Heat Transfer 1308 | . 6 6 384 . 20 99 234 165 . . . 9 . 9 . . . 45 9 . . . 36 . . 67 63 45 9 102 Siege Activations . | . . . . . . . . . . . . . . . . . . . . . . . . . . . . . . . Robots Corrupted . | . . . . . . . . . . . . . . . . . . . . . . . . . . . . . . . Combat Hostiles . | . . . . . . . . . . . . . . . . . . . . . . . . . . . . . . . Parts Fried 1 | . . . . . . . . . . . . . . . . . . . . . . . . . . . 1 . . . Impact Corruptions . | . . . . . . . . . . . . . . . . . . . . . . . . . . . . . . . Robots Melted 1 | . . . 1 . . . . . . . . . . . . . . . . . . . . . . . . . . . Combat Hostiles 1 | . . . 1 . . . . . . . . . . . . . . . . . . . . . . . . . . . Parts Melted 4 | . . . 4 . . . . . . . . . . . . . . . . . . . . . . . . . . . Heat Transferred 3663 | . . . 444 . 1120 1249 100 . . . . . . . . . . . . . . . . . . 550 200 . . . Parts Sabotaged . | . . . . . . . . . . . . . . . . . . . . . . . . . . . . . . . Parts Stolen . | . . . . . . . . . . . . . . . . . . . . . . . . . . . . . . . Parts Stripped . | . . . . . . . . . . . . . . . . . . . . . . . . . . . . . . . Power Chain Reactions . | . . . . . . . . . . . . . . . . . . . . . . . . . . . . . . . Missiles Intercepted . | . . . . . . . . . . . . . . . . . . . . . . . . . . . . . . . Alert | -11 -10 -10 -9 -9 -9 -8 -8 -7 -7 -7 -6 -6 -6 -6 -6 -6 -6 -5 -5 -5 -5 -5 -5 -5 -4 -4 -4 -4 -4 -4 ------- Run | Scr Mat Min Mat Min Exi Min Mat Fac Low Dat Pro Fac Was Fac Low Low Zio Pro Fac Was Fac Upp Upp Zhi Pro Fac Ext Cet Arc Hub Peak Influence 1313 | 20 377 267 788 317 . 280 760 463 . . . 561 30 614 . . . . 456 42 758 . . . . 595 1313 484 200 569 Initial 484 | . 13 147 90 282 . . 76 302 . . . 125 . . . . . . 128 12 29 . . . . . 65 484 185 63 Average 280 | 6 216 211 461 267 . 152 346 245 . . . 139 9 223 . . . . 203 22 127 . . . . 223 610 474 192 209 Maximum Alert Level 4 | . 1 1 3 1 . 1 3 2 . . . 2 . 2 . . . . 2 . 3 . . . . 2 4 2 1 2 Low Security (%) 49 | 100 45 24 16 24 . 69 22 42 . . . 84 100 62 . . . . 61 100 87 . . . . 54 34 . 45 53 Level 1 29 | . 54 75 24 75 . 30 41 42 . . . 12 . . . . . . 31 . 2 . . . . 31 . . 54 38 Level 2 11 | . . . 33 . . . 33 14 . . . 2 . 37 . . . . 7 . 7 . . . . 13 4 100 . 7 Level 3 10 | . . . 24 . . . 2 . . . . . . . . . . . . . 2 . . . . . 59 . . . Level 4 . | . . . . . . . . . . . . . . . . . . . . . . . . . . . 1 . . . Level 5 . | . . . . . . . . . . . . . . . . . . . . . . . . . . . . . . . High Security . | . . . . . . . . . . . . . . . . . . . . . . . . . . . . . . . Max Security . | . . . . . . . . . . . . . . . . . . . . . . . . . . . . . . . Squads Dispatched 63 | . 1 . 8 . . 1 6 6 . . . 3 . . . . . . 5 . 6 . 1 . . 12 9 . . 5 Investigation 11 | . 1 . 4 . . . . 1 . . . 1 . . . . . . 1 . . . . . . 1 2 . . . Extermination 8 | . . . . . . . . 3 . . . 1 . . . . . . 1 . . . . . . 3 . . . . Reinforcement 37 | . . . 3 . . 1 5 2 . . . 1 . . . . . . 3 . 6 . . . . 8 3 . . 5 Assault 7 | . . . 1 . . . 1 . . . . . . . . . . . . . . . 1 . . . 4 . . . Garrison . | . . . . . . . . . . . . . . . . . . . . . . . . . . . . . . . Intercept . | . . . . . . . . . . . . . . . . . . . . . . . . . . . . . . . Construction Impeded 6 | . . . 1 . . 1 . . . . . . . . . . . . . . 1 . . . . . 3 . . . Haulers Reinforced 7 | . . . . . . . 1 1 . . . . . . . . . . . . . . . . . 4 . . . 1 Active Scanning Responses . | . . . . . . . . . . . . . . . . . . . . . . . . . . . . . . . Cargo Convoy Interrupts 1 | . . . . . . . . . . . . . . . . . . . . . 1 . . . . . . . . . Stealth | -11 -10 -10 -9 -9 -9 -8 -8 -7 -7 -7 -6 -6 -6 -6 -6 -6 -6 -5 -5 -5 -5 -5 -5 -5 -4 -4 -4 -4 -4 -4 --------- Run | Scr Mat Min Mat Min Exi Min Mat Fac Low Dat Pro Fac Was Fac Low Low Zio Pro Fac Was Fac Upp Upp Zhi Pro Fac Ext Cet Arc Hub Distress Signals 18 | . 3 . 1 1 . . . 1 . . . 1 . . . . . 1 1 . 2 . . . . 2 2 1 . 2 Communications Jammed . | . . . . . . . . . . . . . . . . . . . . . . . . . . . . . . . Distress Signals . | . . . . . . . . . . . . . . . . . . . . . . . . . . . . . . . Times Spotted 378 | . 22 11 43 4 10 11 22 20 4 . 6 11 6 14 5 2 . 19 24 5 7 . 16 . 2 25 47 5 10 27 Peak Tracking Total 17 | . 5 3 6 4 9 3 4 5 4 . 4 4 6 4 3 2 . 8 8 6 4 . 17 . 2 5 15 5 7 11 Tactical Retreats 68 | . 3 3 4 . 8 . 2 6 . . . 1 . 2 1 1 . 6 7 . 3 . 6 . . 7 5 . . 3 Traps | -11 -10 -10 -9 -9 -9 -8 -8 -7 -7 -7 -6 -6 -6 -6 -6 -6 -6 -5 -5 -5 -5 -5 -5 -5 -4 -4 -4 -4 -4 -4 ------- Run | Scr Mat Min Mat Min Exi Min Mat Fac Low Dat Pro Fac Was Fac Low Low Zio Pro Fac Was Fac Upp Upp Zhi Pro Fac Ext Cet Arc Hub Traps Triggered 13 | . 5 . 2 . . . . . . . . 1 . 1 . . . . 1 . 1 . . . . . 2 . . . Indirectly . | . . . . . . . . . . . . . . . . . . . . . . . . . . . . . . . Trap Hack Attempts . | . . . . . . . . . . . . . . . . . . . . . . . . . . . . . . . Triggered . | . . . . . . . . . . . . . . . . . . . . . . . . . . . . . . . Disarmed . | . . . . . . . . . . . . . . . . . . . . . . . . . . . . . . . Reprogrammed . | . . . . . . . . . . . . . . . . . . . . . . . . . . . . . . . Reused . | . . . . . . . . . . . . . . . . . . . . . . . . . . . . . . . Traps Extracted . | . . . . . . . . . . . . . . . . . . . . . . . . . . . . . . . Installed . | . . . . . . . . . . . . . . . . . . . . . . . . . . . . . . . Triggered 1 | . . . . . . . . . . . . . . . . . . . . . 1 . . . . . . . . . Machines | -11 -10 -10 -9 -9 -9 -8 -8 -7 -7 -7 -6 -6 -6 -6 -6 -6 -6 -5 -5 -5 -5 -5 -5 -5 -4 -4 -4 -4 -4 -4 ---------- Run | Scr Mat Min Mat Min Exi Min Mat Fac Low Dat Pro Fac Was Fac Low Low Zio Pro Fac Was Fac Upp Upp Zhi Pro Fac Ext Cet Arc Hub Machines Disabled 58 | . 1 . 3 . 8 4 13 3 . . . . . 1 . . . . . . 3 . . . . 14 6 . . 2 Max in Single Turn 5 | . 1 . 2 . 2 4 4 2 . . . . . 1 . . . . . . 1 . . . . 5 1 . . 1 Garrison Access 12 | . . . . . . . . 2 . . . 2 . 1 . . . . 2 . 2 . . . . 2 . . . 1 Machines Sabotaged . | . . . . . . . . . . . . . . . . . . . . . . . . . . . . . . . Garrisons Compromised 1 | . . . . . . . . . . . . . . . . . . . . . 1 . . . . . . . . . Overloaded Fab Kills . | . . . . . . . . . . . . . . . . . . . . . . . . . . . . . . . Fab Network Shutdowns 3 | . . . . . . . . . . . . 1 . 1 . . . . . . . . . . . 1 . . . . Hacking | -11 -10 -10 -9 -9 -9 -8 -8 -7 -7 -7 -6 -6 -6 -6 -6 -6 -6 -5 -5 -5 -5 -5 -5 -5 -4 -4 -4 -4 -4 -4 --------- Run | Scr Mat Min Mat Min Exi Min Mat Fac Low Dat Pro Fac Was Fac Low Low Zio Pro Fac Was Fac Upp Upp Zhi Pro Fac Ext Cet Arc Hub Machines Accessed 141 | . 9 1 12 1 2 . 1 13 1 4 . 20 . 7 . 1 . 1 17 . 13 . 3 . . 22 3 . 1 9 Terminals 87 | . 8 1 7 1 . . 1 7 . . . 13 . 3 . . . 1 12 . 7 . . . . 15 3 . . 8 Fabricators 11 | . . . . . . . . 1 . . . 2 . 2 . . . . 2 . 2 . . . . 2 . . . . Repair Stations 8 | . . . 1 . . . . 1 . . . 2 . 1 . . . . . . 2 . . . . 1 . . . . Recycling Units 5 | . 1 . 2 . . . . 1 . . . . . . . . . . . . . . . . . 1 . . . . Scanalyzers 6 | . . . 2 . . . . 1 . . . 1 . . . . . . 1 . . . . . . 1 . . . . Garrison Access 12 | . . . . . . . . 2 . . . 2 . 1 . . . . 2 . 2 . . . . 2 . . . 1 Total Hacks 648 | . 25 2 31 2 2 . 2 60 1 23 . 115 . 30 . 1 . 1 91 . 65 . 4 . . 123 19 . 25 26 Successful 555 | . 20 1 22 . 2 . 1 42 1 23 . 92 . 26 . 1 . 1 84 . 61 . 4 . . 118 12 . 25 19 Failed 89 | . 4 1 9 2 . . 1 17 . . . 22 . 4 . . . . 7 . 4 . . . . 4 7 . . 7 Catastrophic 11 | . 1 . 1 1 . . . . . . . 2 . . . . . . . . 2 . . . . . 4 . . . Database Lockouts 4 | . 1 . . . . . . 1 . . . 1 . . . . . . . . . . . . . 1 . . . . Manual 284 | . 10 2 13 2 1 . . 26 . . . 53 . 12 . . . . 49 . 32 . . . . 57 16 . . 11 Terminals 456 | . 24 2 21 2 . . 2 45 . . . 88 . 19 . . . 1 67 . 48 . . . . 94 19 . . 24 Fabricators 64 | . . . . . . . . 2 . . . 12 . 8 . . . . 16 . 11 . . . . 15 . . . . Repair Stations 28 | . . . 2 . . . . 2 . . . 10 . 2 . . . . . . 4 . . . . 8 . . . . Recycling Units 8 | . 1 . 2 . . . . 3 . . . . . . . . . . . . . . . . . 2 . . . . Scanalyzers 20 | . . . 6 . . . . 3 . . . 3 . . . . . . 6 . . . . . . 2 . . . . Garrison Access 16 | . . . . . . . . 5 . . . 2 . 1 . . . . 2 . 2 . . . . 2 . . . 2 Terminal Hacks 288 | . 13 . 7 . 2 . 1 22 1 23 . 43 . 8 . 1 . 1 35 . 30 . 4 . . 55 7 . 25 10 Record 37 | . . . . . 1 . . . . 7 . . . . . . . . . . 1 . 2 . . . . . 25 1 Part Schematic 40 | . . . . . . . . 3 . 7 . 8 . 1 . . . . 8 . 7 . . . . 6 . . . . Robot Schematic 8 | . . . . . . . . . . 6 . 1 . . . . . . . . . . . . . 1 . . . . Robot Analysis 14 | . 4 . 2 . . . . 1 . . . 1 . 1 . . . . 1 . . . . . . 4 . . . . Prototype ID Bank 37 | . 1 . 3 . . . 1 1 . 3 . 6 . 1 . . . . 6 . 4 . . . . 8 . . . 3 Open Door 5 | . . . . . . . . . 1 . . . . . . 1 . 1 . . . . 2 . . . . . . . Level Access Points 1 | . . . . . . . . 1 . . . . . . . . . . . . . . . . . . . . . . Branch Access Points 6 | . . . . . . . . 1 . . . . . 1 . . . . 1 . 1 . . . . 2 . . . . Machine Index 5 | . . . . . . . . 1 . . . 1 . 1 . . . . . . 1 . . . . 1 . . . . Terminal Index 3 | . 1 . . . . . . . . . . . . 1 . . . . . . . . . . . . . . . 1 Fabricator Index 2 | . . . . . . . . 1 . . . . . 1 . . . . . . . . . . . . . . . . Alert Level 16 | . . . . . . . . 2 . . . 2 . . . . . . 3 . 1 . . . . 6 1 . . 1 Unreport Threat 21 | . . . . . . . . 1 . . . 5 . . . . . . 2 . 3 . . . . 6 4 . . . Locate Traps 32 | . 3 . 2 . . . . 1 . . . 5 . 1 . . . . 5 . 5 . . . . 5 1 . . 4 Maintenance Status 5 | . . . . . . . . 1 . . . 1 . . . . . . 1 . 1 . . . . 1 . . . . Security Status 5 | . . . . . . . . 1 . . . 4 . . . . . . . . . . . . . . . . . . Surveillance Status 1 | . . . . . . . . . . . . . . . . . . . . . . . . . . 1 . . . . Transport Status 1 | . . . . . . . . . . . . . . . . . . . . . . . . . . 1 . . . . Recall Investigation 3 | . . . . . . . . 1 . . . 1 . . . . . . . . . . . . . 1 . . . . Recall Extermination 7 | . . . . . . . . 2 . . . 1 . . . . . . 1 . . . . . . 3 . . . . Recall Reinforcements 13 | . . . . . . . . . . . . 1 . . . . . . 3 . 5 . . . . 4 . . . . Recall Assault 1 | . . . . . . . . . . . . . . . . . . . . . . . . . . . 1 . . . Hauler Manifests 7 | . 1 . . . . . . 1 . . . 1 . . . . . . 1 . . . . . . 3 . . . . Registered Components 1 | . 1 . . . . . . . . . . . . . . . . . . . . . . . . . . . . . Registered Prototypes 2 | . . . . . . . . . . . . 1 . . . . . . . . . . . . . 1 . . . . Zone Layout 14 | . 2 . . . . . . 3 . . . 4 . . . . . . 3 . 1 . . . . 1 . . . . EX-Prototype ID Bank 1 | . . . . . 1 . . . . . . . . . . . . . . . . . . . . . . . . . Fabricator Hacks 47 | . . . . . . . . 2 . . . 9 . 5 . . . . 12 . 7 . . . . 12 . . . . Network Status 4 | . . . . . . . . . . . . 1 . 1 . . . . 1 . . . . . . 1 . . . . Load Schematic 21 | . . . . . . . . 1 . . . 2 . 2 . . . . 6 . 4 . . . . 6 . . . . Build 22 | . . . . . . . . 1 . . . 6 . 2 . . . . 5 . 3 . . . . 5 . . . . Repair Station Hacks 28 | . . . 2 . . . . 2 . . . 10 . 2 . . . . . . 4 . . . . 8 . . . . Scan Component 14 | . . . 1 . . . . 1 . . . 5 . 1 . . . . . . 2 . . . . 4 . . . . Repair 14 | . . . 1 . . . . 1 . . . 5 . 1 . . . . . . 2 . . . . 4 . . . . Recycling Unit Hacks 5 | . . . . . . . . 3 . . . . . . . . . . . . . . . . . 2 . . . . Process 1 | . . . . . . . . 1 . . . . . . . . . . . . . . . . . . . . . . Report Inventory 2 | . . . . . . . . 1 . . . . . . . . . . . . . . . . . 1 . . . . Retrieve Matter 1 | . . . . . . . . 1 . . . . . . . . . . . . . . . . . . . . . . Retrieve Components 1 | . . . . . . . . . . . . . . . . . . . . . . . . . . 1 . . . . Scanalyzer 19 | . . . 6 . . . . 2 . . . 3 . . . . . . 6 . . . . . . 2 . . . . Insert Component 8 | . . . 3 . . . . 1 . . . 1 . . . . . . 2 . . . . . . 1 . . . . Analyze 11 | . . . 3 . . . . 1 . . . 2 . . . . . . 4 . . . . . . 1 . . . . Garrison Access Hacks 12 | . . . . . . . . 2 . . . 2 . 1 . . . . 2 . 2 . . . . 2 . . . 1 Seal Access 12 | . . . . . . . . 2 . . . 2 . 1 . . . . 2 . 2 . . . . 2 . . . 1 Unauthorized Hacks 156 | . 7 1 7 . . . . 9 . . . 25 . 10 . . . . 29 . 18 . . . . 37 5 . . 8 Terminals 136 | . 6 1 5 . . . . 9 . . . 22 . 7 . . . . 25 . 14 . . . . 34 5 . . 8 Track 56 | . 4 1 1 . . . . 4 . . . 9 . 3 . . . . 11 . 6 . . . . 13 1 . . 3 Assimilate 13 | . . . 1 . . . . . . . . 1 . . . . . . 2 . 2 . . . . 4 2 . . 1 Botnet 45 | . 1 . 1 . . . . 5 . . . 8 . 3 . . . . 9 . 5 . . . . 10 . . . 3 Disrupt 14 | . . . 1 . . . . . . . . 3 . . . . . . 2 . . . . . . 6 2 . . . Operators 8 | . 1 . 1 . . . . . . . . 1 . 1 . . . . 1 . 1 . . . . 1 . . . 1 Fabricators 17 | . . . . . . . . . . . . 3 . 3 . . . . 4 . 4 . . . . 3 . . . . Prioritize 7 | . . . . . . . . . . . . 1 . 1 . . . . 2 . 2 . . . . 1 . . . . Siphon 10 | . . . . . . . . . . . . 2 . 2 . . . . 2 . 2 . . . . 2 . . . . Repair Stations . | . . . . . . . . . . . . . . . . . . . . . . . . . . . . . . . Recycling Units 3 | . 1 . 2 . . . . . . . . . . . . . . . . . . . . . . . . . . . Tunnel 3 | . 1 . 2 . . . . . . . . . . . . . . . . . . . . . . . . . . . Scanalyzers . | . . . . . . . . . . . . . . . . . . . . . . . . . . . . . . . Garrison Access . | . . . . . . . . . . . . . . . . . . . . . . . . . . . . . . . Data Cores Recovered . | . . . . . . . . . . . . . . . . . . . . . . . . . . . . . . . Used . | . . . . . . . . . . . . . . . . . . . . . . . . . . . . . . . Hacking Detections 84 | . 8 1 9 1 . . 1 9 . . . 13 . 5 . . . . 10 . 4 . . . . 12 3 . . 8 Full Trace Events 7 | . . . 2 . . . . 1 . . . . . . . . . . 1 . . . . . . 1 2 . . . Feedback Events 2 | . . . . . . . . . . . . . . . . . . . 1 . . . . . . . 1 . . . Corruption 1 | . . . . . . . . . . . . . . . . . . . . . . . . . . . 1 . . . Hackware Fried 1 | . . . . . . . . . . . . . . . . . . . 1 . . . . . . . . . . . Feedback Blocked 1 | . . . . . . . . . . . . . . . . . . . 1 . . . . . . . . . . . Robot Schematics Acquired 8 | . . . . . . . . . . 6 . 1 . . . . . . . . . . . . . 1 . . . . Robots Built . | . . . . . . . . . . . . . . . . . . . . . . . . . . . . . . . Matter . | . . . . . . . . . . . . . . . . . . . . . . . . . . . . . . . Time . | . . . . . . . . . . . . . . . . . . . . . . . . . . . . . . . Total Robot Build Rating . | . . . . . . . . . . . . . . . . . . . . . . . . . . . . . . . Part Schematics Acquired 48 | . . . 3 . . . . 4 . 7 . 9 . 1 . . . . 10 . 7 . . . . 7 . . . . Parts Built 23 | . . . . . . . . 1 . . . 5 . 3 . . . . 6 . 3 . . . . 5 . . . . Matter 4533 | . . . . . . . . 285 . . . 795 . 397 . . . . 927 . 789 . . . . 1340 . . . . Time 1413 | . . . . . . . . 76 . . . 229 . 222 . . . . 238 . 326 . . . . 322 . . . . Total Part Build Rating 144 | . . . . . . . . 5 . . . 30 . 18 . . . . 34 . 21 . . . . 36 . . . . Parts Repaired 14 | . . . 1 . . . . 1 . . . 5 . 1 . . . . . . 2 . . . . 4 . . . . Time 539 | . . . 26 . . . . 44 . . . 154 . 31 . . . . . . 104 . . . . 180 . . . . Parts Recycled . | . . . . . . . . . . . . . . . . . . . . . . . . . . . . . . . Recycled Matter 301 | . . . . . . . . 301 . . . . . . . . . . . . . . . . . . . . . . Retrieved Matter 406 | . . . . . . . . 406 . . . . . . . . . . . . . . . . . . . . . . Retrieved Components 10 | . . . . . . . . . . . . . . . . . . . . . . . . . . 10 . . . . Parts Scanalyzed 8 | . . . 3 . . . . 1 . . . 1 . . . . . . 2 . . . . . . 1 . . . . Part Schematics Acquired 8 | . . . 3 . . . . 1 . . . 1 . . . . . . 2 . . . . . . 1 . . . . Parts Damaged 1 | . . . . . . . . . . . . . . . . . . . . . . . . . . 1 . . . . Bothacking | -11 -10 -10 -9 -9 -9 -8 -8 -7 -7 -7 -6 -6 -6 -6 -6 -6 -6 -5 -5 -5 -5 -5 -5 -5 -4 -4 -4 -4 -4 -4 ------------ Run | Scr Mat Min Mat Min Exi Min Mat Fac Low Dat Pro Fac Was Fac Low Low Zio Pro Fac Was Fac Upp Upp Zhi Pro Fac Ext Cet Arc Hub Used RIF Installer . | . . . . . . . . . . . . . . . . . . . . . . . . . . . . . . . Robots Hacked 4 | . . . . . . . . 1 . . . 1 . . . . . . 2 . . . . . . . . . . . Non-combat 4 | . . . . . . . . 1 . . . 1 . . . . . . 2 . . . . . . . . . . . Combat . | . . . . . . . . . . . . . . . . . . . . . . . . . . . . . . . Robot Hacks Applied 4 | . . . . . . . . 1 . . . 1 . . . . . . 2 . . . . . . . . . . . find_chute 4 | . . . . . . . . 1 . . . 1 . . . . . . 2 . . . . . . . . . . . Relay Couplers Released . | . . . . . . . . . . . . . . . . . . . . . . . . . . . . . . . Robots Rewired 16 | . . . . . . . . . . . . 2 . . . . . . 1 . . . . . . . 12 . 1 . Allies Hacked 1 | . . . . . . . . . . . . . . . . . . . . . 1 . . . . . . . . . Hacks Repelled . | . . . . . . . . . . . . . . . . . . . . . . . . . . . . . . . Allies | -11 -10 -10 -9 -9 -9 -8 -8 -7 -7 -7 -6 -6 -6 -6 -6 -6 -6 -5 -5 -5 -5 -5 -5 -5 -4 -4 -4 -4 -4 -4 -------- Run | Scr Mat Min Mat Min Exi Min Mat Fac Low Dat Pro Fac Was Fac Low Low Zio Pro Fac Was Fac Upp Upp Zhi Pro Fac Ext Cet Arc Hub Total Allies 54 | . . 3 1 . . . . . . . 1 3 1 . . . . . 2 . 20 . . . . 2 19 . 1 1 Largest Group 18 | . . 3 1 . . . . . . . 1 4 3 . . . . . 1 . 18 . . . . 2 9 . 1 1 Highest-Rated Group 700 | . . 40 10 . . . . . . . 95 179 155 . . . . . 29 . 700 . . . . 52 327 . 47 10 Highest-Rated Ally 156 | . . 16 10 . . . . . . . 95 95 95 . . . . . 29 . 74 . . . . 26 156 . 47 10 Total Orders 23 | . . . . . . . . . . . . 2 . . . . . . . . 8 . . . . 11 2 . . . STAY 12 | . . . . . . . . . . . . 1 . . . . . . . . 4 . . . . 6 1 . . . FOLLOW 11 | . . . . . . . . . . . . 1 . . . . . . . . 4 . . . . 5 1 . . . Ally Attacks 306 | . . 20 . . . . . . . . 5 22 16 . . . . . 5 . 74 . . . . . 161 . 3 . Total Damage 7001 | . . 227 . . . . . . . . 97 711 381 . . . . . 95 . 1711 . . . . . 3659 . 120 . Kills 51 | . . 2 . . . . . . . . 1 6 . . . . . . . . 16 . . . . . 26 . . . Allies Corrupted . | . . . . . . . . . . . . . . . . . . . . . . . . . . . . . . . Allies Melted 2 | . . . . . . . . . . . . . . . . . . . . . . . . . . . 1 . 1 . Intel | -11 -10 -10 -9 -9 -9 -8 -8 -7 -7 -7 -6 -6 -6 -6 -6 -6 -6 -5 -5 -5 -5 -5 -5 -5 -4 -4 -4 -4 -4 -4 ------- Run | Scr Mat Min Mat Min Exi Min Mat Fac Low Dat Pro Fac Was Fac Low Low Zio Pro Fac Was Fac Upp Upp Zhi Pro Fac Ext Cet Arc Hub Robot Analysis Total 14 | . 4 . 2 . . . . 1 . . . 1 . 1 . . . . 1 . . . . . . 4 . . . . Derelict Logs Recovered 13 | . . 1 . . . . . . . . 1 . . . 1 1 2 2 . . . 1 2 . 2 . . . . . Drone Launches . | . . . . . . . . . . . . . . . . . . . . . . . . . . . . . . . Drone Recoveries . | . . . . . . . . . . . . . . . . . . . . . . . . . . . . . . . Exploration | -11 -10 -10 -9 -9 -9 -8 -8 -7 -7 -7 -6 -6 -6 -6 -6 -6 -6 -5 -5 -5 -5 -5 -5 -5 -4 -4 -4 -4 -4 -4 ------------- Run | Scr Mat Min Mat Min Exi Min Mat Fac Low Dat Pro Fac Was Fac Low Low Zio Pro Fac Was Fac Upp Upp Zhi Pro Fac Ext Cet Arc Hub Turns Passed 17267 | 158 731 792 1255 527 1856 724 473 1292 227 34 275 920 50 311 211 146 207 290 732 44 911 176 215 57 113 2077 1706 51 57 649 Spaces Moved 22642 | 107 513 575 612 192 1014 538 245 1225 395 105 631 1597 126 745 645 482 741 671 1845 134 1946 497 694 156 299 3318 1765 88 99 642 Core 268 | 8 . . . . . . . 1 . . . . . . . . . . . . . . . . . . 18 88 99 54 Treads 1260 | . 20 77 206 192 765 . . . . . . . . . . . . . . . . . . . . . . . . . Legs 1408 | . . . . . 249 538 245 376 . . . . . . . . . . . . . . . . . . . . . . Wheels 2053 | 99 493 498 406 . . . . 404 . . . . . . . . . . . . . . . . . . . . . 153 Hover 281 | . . . . . . . . . . . . . . . . . . . . . . . . . . . . . . 281 Flight 17372 | . . . . . . . . 444 395 105 631 1597 126 745 645 482 741 671 1845 134 1946 497 694 156 299 3318 1747 . . 154 Fastest Speed 18 | 50 80 95 95 160 120 120 120 32 32 32 32 32 32 27 27 27 27 27 25 25 25 25 25 25 25 18 23 50 50 37 Average Speed 47 | 84 92 113 116 160 150 120 121 88 32 32 32 32 32 30 27 27 27 27 25 25 26 25 25 25 25 23 26 50 50 73 Slowest Speed 1000 | 90 160 260 160 160 160 120 200 1000 32 32 32 32 32 32 27 27 27 27 25 25 104 25 25 99 25 100 115 50 50 150 Overloaded Moves 61 | . . . . . . . . . . . . . . . . . . . . . . . . . . 61 . . . . Propulsion Burnouts . | . . . . . . . . . . . . . . . . . . . . . . . . . . . . . . . Robots Hopped 59 | . . . . . . . . 4 . . . 5 . 2 1 . . 1 13 . 10 . 1 . 1 7 12 . . 2 Cave-ins Triggered . | . . . . . . . . . . . . . . . . . . . . . . . . . . . . . . . Teleports 1 | . . . . . . . . . . . . . . . . . . . . . . . . . . . 1 . . . Exploration Rate (%) 60 | 6 82 95 73 23 78 99 29 23 45 69 75 35 72 19 77 65 83 72 33 82 46 69 82 61 49 51 93 50 75 53 Regions Visited 30 Branch Regions 19 Pre-discovered Areas 9 | . 1 2 2 . 1 . . . . 1 . . . . . . 1 1 . . . . . . . . . . . . Known Exits Taken 12 | . . . . . . . . 1 . . 1 . . 1 . . . . . . 1 1 1 1 1 1 1 1 1 . Unknown Exits Taken 14 | 1 1 1 1 1 1 1 1 . 1 1 . . . . 1 1 1 1 . . . . . . . . . . . . Scrap Searched 18 | . . 1 . 1 . 1 . . 2 . 1 . . . 4 2 . . . . . 2 3 . 1 . . . . . Spaces Dug 123 | . 4 1 9 . . . . 6 1 . . 3 . 5 . 1 . 2 25 . 18 2 . . . 40 . . . 6 Terrain Destroyed 1273 | . 20 16 44 2 29 22 95 12 14 . 31 44 . 5 49 23 . 56 27 . 19 6 51 . . 235 396 . . 77 Melee 92 | . . . . . . . . 6 1 . . 3 . 5 . 1 . 2 25 . 12 2 . . . 29 . . . 6 Projectile 93 | . 4 1 2 2 1 1 25 2 . . . . . . . . . . 2 . 7 4 . . . 34 2 . . 6 AOE 1082 | . 16 15 42 . 28 21 68 . 13 . 31 41 . . 49 22 . 54 . . . . 51 . . 172 394 . . 65 Terrain Rammed . | . . . . . . . . . . . . . . . . . . . . . . . . . . . . . . . Walls Destroyed . | . . . . . . . . . . . . . . . . . . . . . . . . . . . . . . . Machines Disabled . | . . . . . . . . . . . . . . . . . . . . . . . . . . . . . . . Actions | -11 -10 -10 -9 -9 -9 -8 -8 -7 -7 -7 -6 -6 -6 -6 -6 -6 -6 -5 -5 -5 -5 -5 -5 -5 -4 -4 -4 -4 -4 -4 --------- Run | Scr Mat Min Mat Min Exi Min Mat Fac Low Dat Pro Fac Was Fac Low Low Zio Pro Fac Was Fac Upp Upp Zhi Pro Fac Ext Cet Arc Hub Total 27682 | 143 666 634 976 408 1269 569 334 1350 480 104 697 1965 135 789 673 493 747 759 2034 143 2295 540 728 174 334 4422 2866 94 105 756 Wait 3685 | 1 53 13 201 215 124 3 23 17 74 . 61 321 8 3 23 9 4 75 132 10 313 34 31 . 36 932 931 5 6 27 Move 22499 | 106 512 574 611 191 1013 537 244 1216 394 104 630 1587 125 740 642 481 740 668 1820 133 1925 496 691 155 296 3304 1741 87 98 638 Hop 56 | . . . . . . . . 4 . . . 5 . 2 1 . . 1 12 . 10 . 1 . 1 6 11 . . 2 Pick Up 131 | 11 14 . 16 . 22 . 9 11 . . . 5 1 4 . . 1 . 8 . 3 . . 4 . 10 5 . . 7 Fast Attach 78 | 2 7 . 6 . 1 . 2 10 . . . 8 . . . . . . 2 . 6 . . 6 . 5 6 . . 17 Attach 69 | 5 3 . 5 . 17 1 2 9 . . . 2 . 1 . . 1 . 6 . 1 2 . . . 4 4 1 . 5 Detach 20 | . . . . . 1 1 1 4 . . . 1 . . . . . . 1 . 1 2 . . . 3 4 1 . . Swap 156 | . 22 10 29 . 5 3 2 11 4 . . 6 . 3 1 . . . 9 . 7 . 1 . 1 26 10 . . 6 Drop 136 | 1 7 . 16 . 18 . 7 26 . . . 6 1 5 . . 1 1 6 . 5 . . 9 . 9 7 . . 11 Fire 553 | 17 48 37 90 2 66 24 44 34 2 . 6 10 . . 6 2 . 9 7 . 7 4 4 . . 58 62 . . 14 Melee 228 | . . . . . . . . 8 6 . . 14 . 20 . 1 . 5 31 . 17 2 . . . 65 30 . . 29 Ram . | . . . . . . . . . . . . . . . . . . . . . . . . . . . . . . . Kick . | . . . . . . . . . . . . . . . . . . . . . . . . . . . . . . . Crush 4 | . . . 2 . 2 . . . . . . . . . . . . . . . . . . . . . . . . . Escape Stasis 27 | . . . . . . . . . . . . . . 11 . . . . . . . . . . . . 16 . . . Rewire 40 | . . . . . . . . . . . . . . . . . . . . . . . . . . . 39 . 1 . Trap . | . . . . . . . . . . . . . . . . . . . . . . . . . . . . . . . Miscellaneous . | . . . . . . . . . . . . . . . . . . . . . . . . . . . . . . . Route ------- -11/Scrapyard -10/Materials (discovered 4 exits: *Mat x2 / *Min x2) -10/Mines (discovered 2 exits: *Mat x2) -9/Materials (discovered 3 exits: *Mat x2 / *Min) -9/Mines -9/Exiles (discovered 2 exits: [*Min x2]) -8/Mines (discovered 2 exits: *Mat x2) -8/Materials -7/Factory (discovered 8 exits: *Fac x4 / Sto x2 / *Low x2) -7/Lower Caves -7/Data Miner -6/Proximity Caves -6/Factory -6/Waste -6/Factory (discovered 2 exits: *Low x2) -6/Lower Caves -6/Lower Caves -6/Zion -5/Proximity Caves -5/Factory (discovered 2 exits: *Upp x2) -5/Waste -5/Factory (discovered 5 exits: *Fac x3 / *Upp x2) -5/Upper Caves -5/Upper Caves (discovered 2 exits: *Fac / *Zhi) -5/Zhirov -4/Proximity Caves -4/Factory (discovered 6 exits: *Res x2 / *Upp x2 / *Ext x2) -4/Extension (discovered 2 exits: *Res / *Cet) -4/Cetus -4/Archives -4/Hub_04(d) History --------- Turn | Location | Event 26 | -11/Scrapyard | Discovered new exit (range 15) 159 | -11/Scrapyard | Entered Materials 291 | -10/Materials | Discovered new exit (range 15) 306 | -10/Materials | Build established: Mutant 327 | -10/Materials | Central database locked down 450 | -10/Materials | Discovered new exit (range 8) 544 | -10/Materials | Discovered new exit (range 14) 743 | -10/Materials | Discovered new exit (range 5) 890 | -10/Materials | Entered Mines 908 | -10/Mines | A weapon hastily lodged in a ceiling crevice suddenly fell to the ground 1189 | -10/Mines | Learned location of Mines (-9) 1251 | -10/Mines | Assisted by bots powering up and referring to "LRC-V3" 1314 | -10/Mines | Discovered new exit (range 6) 1667 | -10/Mines | Discovered new exit (range 9) 1682 | -10/Mines | Entered Materials 1682 | -9/Materials | Evolved 2 slots: Utility x2 1832 | -9/Materials | Discovered new exit (range 11) 1878 | -9/Materials | Discovered new exit (range 7) 2420 | -9/Materials | Discovered new exit (range 11) 2482 | -9/Materials | First assault squad dispatched 2602 | -9/Materials | Destroyed 7 combat bots 2781 | -9/Materials | Repaired Lgt. Treads 2937 | -9/Materials | Entered Mines 2938 | -9/Mines | Assembled infested the area 2943 | -9/Mines | Assisted by a Guerilla fighting off Assembled 2955 | -9/Mines | Build established: Scavenger-Mutant 2961 | -9/Mines | Met a Derelict bent on vengeance 3398 | -9/Mines | Deemed a non-threat by the Exiles lab entrance 3398 | -9/Mines | Discovered new exit (range 5) 3464 | -9/Mines | Entered Exiles 3488 | -9/Exiles | Discovered new exit (range 15) 3508 | -9/Exiles | Met 8R-AWN 3532 | -9/Exiles | Met EX-HEX 3591 | -9/Exiles | Met EX-DEC 3604 | -9/Exiles | Learned location of Zion (-6) 3636 | -9/Exiles | Met EX-BIN 3660 | -9/Exiles | Aligned with FarCom system 3661 | -9/Exiles | Given EX-Vault access code 3701 | -9/Exiles | Opened EX-Vault 3748 | -9/Exiles | Warned to stay clear of 0b10 Research branches 3895 | -9/Exiles | Discovered new exit (range 10) 3997 | -9/Exiles | Visited The Gauntlet 4386 | -9/Exiles | Found Firepult 4578 | -9/Exiles | Attacked by the Exiles 4776 | -9/Exiles | Destroyed 8R-AWN 4780 | -9/Exiles | Found Prototype Device 4781 | -9/Exiles | Identified AS-neutralizer No. 17b 4805 | -9/Exiles | Lost 9 parts (1p3n2u3w) 4888 | -9/Exiles | Found Prototype Protection 4892 | -9/Exiles | Found Prototype Ballistic Gun 4896 | -9/Exiles | Found Prototype Ballistic Gun 5013 | -9/Exiles | Core integrity fell below 50% 5169 | -9/Exiles | Identified 8R-AWN's Boregun (x2) 5207 | -9/Exiles | Found Prototype Processor 5210 | -9/Exiles | Identified Exp. Targeting Computer 5320 | -9/Exiles | Entered Mines 5392 | -8/Mines | Discovered new exit (range 13) 5823 | -8/Mines | Core integrity fell below 20% 6034 | -8/Mines | Discovered new exit (range 10) 6044 | -8/Mines | Entered Materials 6044 | -8/Materials | Evolved 2 slots: Utility x2 6444 | -8/Materials | First assault squad dispatched 6499 | -8/Materials | Discovered new exit (range 15) 6517 | -8/Materials | Entered Factory 6517 | -7/Factory | Evolved 2 slots: Utility x2 6518 | -7/Factory | Discovered new exit (range 13) 6927 | -7/Factory | Central database locked down 6936 | -7/Factory | Discovered new exit (range 15) 7027 | -7/Factory | Identified exit to Storage 7027 | -7/Factory | Identified exit to Lower Caves 7034 | -7/Factory | Identified exit to Factory 7279 | -7/Factory | Identified 8R-AWN's Armor/EX 7321 | -7/Factory | Repaired Hrd. Heavy Armor Plating 7345 | -7/Factory | Build established: Hacker-Mutant 7723 | -7/Factory | Fabricated Gravity Neutralizing Apparatus (x1) 7809 | -7/Factory | Entered Lower Caves 7935 | -7/Lower Caves | Build established: Wizard-Sprinter 8033 | -7/Lower Caves | A Derelict revealed a hidden shortcut to meet someone special 8036 | -7/Lower Caves | Entered Data Miner 8036 | -7/Data Miner | Discovered new exit (range 6) 8043 | -7/Data Miner | Met Data Miner 8051 | -7/Data Miner | Learned location of Section 7 (-3) 8055 | -7/Data Miner | Received God Mode back door access code from Data Miner 8060 | -7/Data Miner | Acquired the access code to Warlord's prototype stash 8070 | -7/Data Miner | Entered Proximity Caves 8145 | -6/Proximity Caves | Escorted by Enhanced Grunt 8234 | -6/Proximity Caves | Learned Factory terminal intel 8288 | -6/Proximity Caves | Discovered exit to Factory (range 10) 8343 | -6/Proximity Caves | Received a Behemoth hack from an annoying Tinkerer 8345 | -6/Proximity Caves | Entered Factory 8345 | -6/Factory | Accompanied by 1 ally 8345 | -6/Factory | Evolved 2 slots: Utility x2 8346 | -6/Factory | Loaded intel: 20 terminal locations 8447 | -6/Factory | Central database locked down 8524 | -6/Factory | Spotted B-75 Beast 8822 | -6/Factory | Discovered new exit (range 5) 8924 | -6/Factory | Fabricated Adv. Hacking Suite (x1) 8971 | -6/Factory | Fabricated Adv. System Shield? 8984 | -6/Factory | Fabricated Adv. Hacking Suite? 9014 | -6/Factory | Fabricated Adv. System Shield (x1) 9042 | -6/Factory | Fabricated Adv. Hacking Suite (x1) 9059 | -6/Factory | Local fabrication network quarantined 9129 | -6/Factory | Repaired Prc. Grenade Launcher 9139 | -6/Factory | Repaired Imp. VTOL Module 9161 | -6/Factory | Repaired Axe 9175 | -6/Factory | Repaired Structural Scanner 9199 | -6/Factory | Repaired Remote Datajack 9265 | -6/Factory | Sucked down chute 9265 | -6/Factory | Entered Waste 9266 | -6/Waste | Met a frightened Derelict 9268 | -6/Waste | Spotted C-40 Crusher 9275 | -6/Waste | 1 allies followed down the chute 9277 | -6/Waste | Spotted C-40 Crusher 9280 | -6/Waste | Spotted C-40 Crusher 9283 | -6/Waste | Spotted C-40 Crusher 9284 | -6/Waste | Discovered new exit (range 16) 9284 | -6/Waste | Spotted C-40 Crusher 9288 | -6/Waste | Spotted C-40 Crusher 9305 | -6/Waste | 3 allies followed down the chute 9315 | -6/Waste | Entered Factory 9355 | -6/Factory | Identified exit to Lower Caves 9430 | -6/Factory | Fabricated Mic. Fission Core? 9510 | -6/Factory | Fabricated Exp. Cesium-ion Thruster? 9510 | -6/Factory | Local fabrication network quarantined 9613 | -6/Factory | Repaired Adv. Transmission Jammer? 9626 | -6/Factory | Entered Lower Caves 9642 | -6/Lower Caves | Encountered a Warlord checkpoint 9750 | -6/Lower Caves | Discovered new exit (range 6) 9819 | -6/Lower Caves | Spotted B-75 Beast 9837 | -6/Lower Caves | Entered another Lower Caves area 9898 | -6/Lower Caves | Learned Factory emergency access door positions 9981 | -6/Lower Caves | Discovered new exit (range 8) 9983 | -6/Lower Caves | Entered Zion 9999 | -6/Zion | Given A8's code to call for help 10007 | -6/Zion | Discovered new exit (range 11) 10028 | -6/Zion | Found CR-A16's Pointy Stick 10055 | -6/Zion | Learned Factory terminal intel 10055 | -6/Zion | Received a visual enhancement algorithm 10190 | -6/Zion | Entered Proximity Caves 10253 | -5/Proximity Caves | Learned Factory interactive machine intel 10350 | -5/Proximity Caves | Attracted the attention of an 0b10 checkpoint 10452 | -5/Proximity Caves | Learned location of Armory (-3) 10459 | -5/Proximity Caves | Snuck into a huge 0b10 base via the rear entrance 10479 | -5/Proximity Caves | Discovered new exit (range 3) 10480 | -5/Proximity Caves | Entered Factory 10480 | -5/Factory | Evolved 2 slots: Propulsion x1, Utility x1 10481 | -5/Factory | Identified exit to Upper Caves 10483 | -5/Factory | Loaded intel: 45 interactive machine locations 10484 | -5/Factory | Loaded intel: 19 terminal locations 10786 | -5/Factory | Adv. Hacking Suite fried by hacking feedback 10813 | -5/Factory | Incoming investigation squad redirected 11041 | -5/Factory | Fabricated Exp. Utility Shielding? 11044 | -5/Factory | Fabricated Mni. Smartbomb Launcher? 11111 | -5/Factory | Fabricated Adv. Signal Interpreter? 11115 | -5/Factory | Fabricated Lrn. Sensor Array (x1) 11143 | -5/Factory | Fabricated Adv. System Shield? 11212 | -5/Factory | Manually triggered Chute Trap 11212 | -5/Factory | Sucked down chute 11212 | -5/Factory | Entered Waste 11219 | -5/Waste | Spotted C-40 Crusher 11221 | -5/Waste | Spotted C-40 Crusher 11221 | -5/Waste | Spotted C-40 Crusher 11227 | -5/Waste | EMP discharged 11253 | -5/Waste | Spotted C-40 Crusher 11253 | -5/Waste | Spotted C-40 Crusher 11253 | -5/Waste | Discovered new exit (range 11) 11253 | -5/Waste | Spotted C-40 Crusher 11256 | -5/Waste | Identified exit to Factory 11256 | -5/Waste | Entered Factory 11277 | -5/Factory | Discovered new exit (range 8) 11303 | -5/Factory | Identified exit to Factory 11403 | -5/Factory | Discovered exit to Factory (range 10) 11452 | -5/Factory | Repaired Exp. Cesium-ion Thruster 11847 | -5/Factory | Repaired Imp. VTOL Module 11858 | -5/Factory | Discovered exit to Factory (range 9) 11946 | -5/Factory | Cargo convoy interrupted 11992 | -5/Factory | Fabricated Exp. Signal Interpreter? 11995 | -5/Factory | Fabricated Mni. Fusion Reactor (x1) 12042 | -5/Factory | Fabricated Exp. Hacking Suite? 12144 | -5/Factory | Build established: Wizard-Scout 12167 | -5/Factory | Entered Upper Caves 12248 | -5/Upper Caves | Encountered a Warlord checkpoint 12254 | -5/Upper Caves | Identified exit to Upper Caves 12343 | -5/Upper Caves | Entered another Upper Caves area 12346 | -5/Upper Caves | Discovered exit to Factory (range 5) 12348 | -5/Upper Caves | Attracted the attention of an 0b10 outpost 12363 | -5/Upper Caves | Learned Armory trap positions 12434 | -5/Upper Caves | Learned Factory trap positions 12527 | -5/Upper Caves | Discovered new exit (range 5) 12533 | -5/Upper Caves | Identified exit to Zhirov 12558 | -5/Upper Caves | Entered Zhirov 12558 | -5/Zhirov | Discovered new exit (range 3) 12576 | -5/Zhirov | Found Alien Artifact 12576 | -5/Zhirov | Identified Integrated Reactor 12576 | -5/Zhirov | Installed Integrated Reactor, increased core energy generation (+10) 12583 | -5/Zhirov | Found Alien Artifact 12615 | -5/Zhirov | Identified exit to Proximity Caves 12615 | -5/Zhirov | Entered Proximity Caves 12625 | -4/Proximity Caves | Learned Research stockpile data 12665 | -4/Proximity Caves | Attracted the attention of an 0b10 checkpoint 12719 | -4/Proximity Caves | Spotted B-86 Titan 12728 | -4/Proximity Caves | Entered Factory 12728 | -4/Factory | Evolved 2 slots: Propulsion x1, Utility x1 12729 | -4/Factory | Loaded intel: 93 trap records 13049 | -4/Factory | Spotted B-86 Titan 13067 | -4/Factory | Found Quantum Capacitor 13085 | -4/Factory | Identified exit to Upper Caves 13085 | -4/Factory | Identified exit to Extension 13128 | -4/Factory | Discovered new exit (range 15) 13161 | -4/Factory | Identified exit to Research 13213 | -4/Factory | Central database locked down 13239 | -4/Factory | Discovered exit to Research (range 12) 13336 | -4/Factory | Repaired Mni. Fusion Reactor 13382 | -4/Factory | Repaired Cld. Nuclear Pulse Thruster? 13481 | -4/Factory | Spotted B-86 Titan 13752 | -4/Factory | Repaired Broken Quantum Capacitor 13797 | -4/Factory | Repaired Mni. Smartbomb Launcher 14274 | -4/Factory | Fabricated EM Dispersion Field (x1) 14305 | -4/Factory | Fabricated Inertial Stasis Machine (x1) 14333 | -4/Factory | Fabricated Prc. Energy Filter? 14338 | -4/Factory | Fabricated Exp. Sensor Array? 14436 | -4/Factory | Local fabrication network quarantined 14450 | -4/Factory | Fabricated Plasma Lance (x1) 14805 | -4/Factory | Entered Extension 14831 | -4/Extension | Rescued a captive Derelict 14976 | -4/Extension | Rescued A7 15007 | -4/Extension | Rescued a captive Derelict 15280 | -4/Extension | Disrupted transfer network 15426 | -4/Extension | Spotted B-86 Titan 15432 | -4/Extension | Destroyed 8 combat bots 15439 | -4/Extension | Destroyed B-86 Titan 15497 | -4/Extension | Spotted B-86 Titan 15512 | -4/Extension | Destroyed B-86 Titan 15555 | -4/Extension | First assault squad dispatched 15578 | -4/Extension | Build established: Wizard-Sprinter 15695 | -4/Extension | Destroyed 13 combat bots 15705 | -4/Extension | Incoming investigation squad redirected 15711 | -4/Extension | Rescued a captive Derelict 15718 | -4/Extension | Lost 5 parts (1p1n3u) 15730 | -4/Extension | Extracted ID and sensor layout for unrecognized location from A7's data core 15829 | -4/Extension | Rescued a captive Derelict 15829 | -4/Extension | Rescued a captive Derelict 15958 | -4/Extension | Lost 4 parts (1p1n2u) 16084 | -4/Extension | Incoming assault squad redirected 16204 | -4/Extension | Build established: Hacker-Sprinter 16351 | -4/Extension | Identified Transdimensional Reconstructor 16351 | -4/Extension | Warped through subspace 16507 | -4/Extension | Discovered exit to Research (range 16) 16507 | -4/Extension | Discovered new exit (range 15) 16511 | -4/Extension | Identified exit to Cetus 16511 | -4/Extension | Entered Cetus 16520 | -4/Cetus | Spotted Cetus Guard 16520 | -4/Cetus | Spotted Cetus Guard 16521 | -4/Cetus | Spotted Cetus Guard 16521 | -4/Cetus | Spotted Cetus Guard 16535 | -4/Cetus | Core integrity fell below 50% 16554 | -4/Cetus | Discovered new exit (range 16) 16561 | -4/Cetus | Identified exit to Archives 16562 | -4/Cetus | Entered Archives 16568 | -4/Archives | Lost 3 parts (1n2u) 16569 | -4/Archives | Met Zhirov 16572 | -4/Archives | Unable to access archive contents 16573 | -4/Archives | Unable to access archive contents 16575 | -4/Archives | Reinforcements dispatched to Archives 16577 | -4/Archives | Unable to access archive contents 16585 | -4/Archives | Read partially decrypted archive contents 16589 | -4/Archives | Discovered new exit (range 13) 16617 | -4/Archives | Identified exit to Hub_04(d) 16619 | -4/Archives | Entered Hub_04(d) 16828 | -4/Hub_04(d) | Build established: Hacker-Mutant 17046 | -4/Hub_04(d) | Destroyed 10 combat bots 17048 | -4/Hub_04(d) | Lost 3 parts (1p1n1u) 17166 | -4/Hub_04(d) | Spotted B-86 Titan 17240 | -4/Hub_04(d) | Core integrity fell below 20% 17250 | -4/Hub_04(d) | Disrupted transfer network 17268 | -4/Hub_04(d) | Destroyed by H-77 Assassin with Coil Gun Last Messages --------------- 17246_ U-05 Engineer destroyed. 17247_ Penetrated by Slug. 17248_ Destroyed VTOL Module. 17248_ S-27 Virus destroyed. 17248_ H-77 Assassin destroyed. 17248_ Slug penetrates Backup Mainframe. 17248_ Slug penetrates Wall. 17248_ Mni. Smartbomb Launcher destroyed. 17250_ ALERT: Transfer network disrupted, dispatching garrison force. 17253_ Slug penetrates Terminal. 17255_ ALERT: Suspicious intruders detected, dispatching reinforcements to area. 17258_ The unstable cave ceiling collapses. 17261_ Penetrated by Slug. 17261_ Slug penetrates Wall. 17261_ Slug penetrates Terminal. 17264_ Penetrated by Slug. 17264_ Adv. Hacking Suite destroyed. 17264_ Slug penetrates Terminal. 17268_ Med. Storage Unit destroyed. Map ----- +----------------------------------------------------+ | ######+#### " " # ### # ??????????????????? | | # # + ##?### ??????????????????? | | # ??????? # # ????### ??????????????????? | | # ??????? ###+### ??????????????????????????? | | # ??????? ### ## ??????????????????????????? | | + ?????????## ##????????????????????????????? | | # ?????????## ##????????????????????????????? | | # ?????????## ## ####????????????????????? | | # ?????????## ###/###########???????????????? | | ##?????????## ## ############???????? | | +##?????????## ## ##########???????? | | ??????????## ## ##! ##???????? | | ????????????## ## ? ## ! ##???????? | | ??????########+## ????## ! ##???????? | | ??????# #A ??????## ##???????? | | ??????# =#+####+#??## !!!##???????? | | ??????# # #??## !!!##???????? | | ??????# + #??## !! ##???????? | | ??????# # ##### ######???? | | ??????# # #""## ! # ###?? | | ??????# # #T"########+## """#? | | ??????# # !%! "#? | | ??A???########### % #? | | ????????????????# ! "#? | | ????????????????# ######## # % ## """#? | | ????????????????# #??# /@/h # ###?? | | ????????????????# #??# /""Y % #?####???? | | ????????????????# #??#h"" " [ =#????????? | | ##??????????????# #??# #????????? | | ?????????????# ???# " "" #????????? | | #???????????????# ???#= ! #????????? | | #???????????????# ???###############????????? | | #???????????????# ???????????????????????????? | | ?????????????????????????????????????????????? | | ?????????????????????????????????????????????? | | ?????????????????????????????????????????????? | | ?????????????????????????????????????????????? | | ??????????????????H??????????????????????????? | | ?????????????????????????????????????????????? | | ?????????????????????????????????????????????? | | ?????????????????????????????????????????????? | | ?????????????????????????????????????????????? | | ?????????????????????????????????????????????? | | ?????????????????????????????????????????????? | | ?????????????????????????????????????????????? | | ?????????????????????????????????????????????? | | ?????????????????????????????????????????????? | | ?????????????????????????????????????????????? | | ?????????????????????????????????????????????? | | ?????????????????????????????????????????????? | +----------------------------------------------------+ Best States ------------- Heat Dissipation 60 Coolant Potential 200 Energy Generation 37 Energy Capacity 340 Matter Stores 300 Matter Capacity 300 Sight Range 16 Robot Scan Range 20 Terrain Scan Density 10 Jamming Range 16 Additional Mass Support 16 Armor Coverage 1000 Resistance: EX 90 Resistance: EM 75 Utility Shielding 90 Melee Speed Boost 30 Phase Shifting 10 Evasion (%) 65 Targeting Accuracy 12 Melee Accuracy 8 Armor Integrity Analysis 20 Recoil Reduction 2 Salvage Targeting 1 Offensive Hacking 72 Defensive Hacking 52 Item Schematics ----------------- Lgt. Assault Rifle | -9/Materials | Scanalyzed Imp. Flight Unit | -9/Materials | Scanalyzed Hcp. Battery | -9/Materials | Scanalyzed System Shield | -7/Factory | Hacked Hacking Suite | -7/Factory | Hacked Imp. Remote Datajack | -7/Factory | Hacked Gravity Neutralizing Apparatus | -7/Factory | Scanalyzed Combat Drone Bay | -7/Data Miner | Free Lgt. Regenerative Plating | -7/Data Miner | Free Triangulator | -7/Data Miner | Free Exp. Targeting Computer | -7/Data Miner | Free Exp. Transmission Jammer | -7/Data Miner | Free Cloaking Device | -7/Data Miner | Free Mni. Smartbomb Launcher | -7/Data Miner | Free Adv. Hacking Suite | -6/Factory | Hacked Adv. System Shield | -6/Factory | Hacked Mic. Fission Core | -6/Factory | Hacked Fusion Compressor | -6/Factory | Hacked Adv. Signal Interpreter | -6/Factory | Hacked Adv. Transmission Jammer | -6/Factory | Hacked Imp. Cesium-ion Thruster | -6/Factory | Scanalyzed Drone Bay | -6/Factory | Hacked Lgt. Fission Core | -6/Factory | Hacked Exp. Cesium-ion Thruster | -6/Factory | Hacked Exp. Utility Shielding | -5/Factory | Hacked System Restoration Module | -5/Factory | Hacked Hcp. Storage Unit | -5/Factory | Hacked Prc. Energy Filter | -5/Factory | Hacked Prc. Matter Filter | -5/Factory | Hacked Lrn. Sensor Array | -5/Factory | Hacked Com. Ion Cannon | -5/Factory | Scanalyzed Energy Well | -5/Factory | Scanalyzed Mni. Fusion Reactor | -5/Factory | Hacked Inertial Stasis Machine | -5/Factory | Hacked Exp. Weapon Shielding | -5/Factory | Hacked Exp. Signal Interpreter | -5/Factory | Hacked Plasma Lance | -5/Factory | Hacked Exp. Hacking Suite | -5/Factory | Hacked Imp. Fusion Compressor | -5/Factory | Hacked Helical Railgun | -5/Factory | Hacked Nanoactuators | -5/Factory | Hacked Biometal Medium Treads | -4/Factory | Hacked Machine Analyzer | -4/Factory | Hacked Exp. Sensor Array | -4/Factory | Hacked EM Dispersion Field | -4/Factory | Hacked Point Singularity Launcher | -4/Factory | Hacked Quantum Capacitor | -4/Factory | Scanalyzed Arm. Heavy Treads | -4/Factory | Hacked Robot Schematics ------------------ S-27 Virus | -7/Data Miner | Free G-50 Soldier | -7/Data Miner | Free G-67 Veteran | -7/Data Miner | Free L-41 Fighter | -7/Data Miner | Free H-66 Slayer | -7/Data Miner | Free I-36 Angel | -7/Data Miner | Free O-24 Administrator | -6/Factory | Hacked B-60 Warrior | -4/Factory | Hacked Fabricated ------------ Gravity Neutralizing Apparatus | x1 | -7/Factory Adv. Hacking Suite | x1 | -6/Factory Adv. System Shield | x1 | -6/Factory Adv. Hacking Suite | x1 | -6/Factory Adv. System Shield | x1 | -6/Factory Adv. Hacking Suite | x1 | -6/Factory Mic. Fission Core | x2 | -6/Factory Exp. Cesium-ion Thruster | x1 | -6/Factory Exp. Utility Shielding | x1 | -5/Factory Mni. Smartbomb Launcher | x1 | -5/Factory Adv. Signal Interpreter | x2 | -5/Factory Lrn. Sensor Array | x1 | -5/Factory Adv. System Shield | x1 | -5/Factory Exp. Signal Interpreter | x1 | -5/Factory Mni. Fusion Reactor | x1 | -5/Factory Exp. Hacking Suite | x1 | -5/Factory EM Dispersion Field | x1 | -4/Factory Inertial Stasis Machine | x1 | -4/Factory Prc. Energy Filter | x1 | -4/Factory Exp. Sensor Array | x1 | -4/Factory Plasma Lance | x1 | -4/Factory Alien Tech Used ----------------- Integrated Reactor Transdimensional Reconstructor Achievements -------------- None Challenges ------------ None Game ------ Seed LightChainProtomatter Manual? 0 Play Time 07:18:19 Cumulative 426.1 hours Start 2021.08.04 @ 21:20:26 End 2021.08.05 @ 23:42:00 Sessions 3 Manual Loads 0 Difficulty Rogue Special Mode None Game No. 135 Rogue 131 Adventurer 4 Explorer 0 Win Type - Total 10 Types 5/1/3/0/0/0/0/1/0 Lore% 82 Gallery% 81 Achievement% 68 Wizard Run 0 Options --------- ASCII 1 Keyboard 0 Movement Arrows Keybinds 0 Fullscreen 1 Font 18/Terminus Map View 76x50 Tactical HUD 1 Map Filters NONE Filters NONE Steam 1 RUN: b11fdf54-e1fa-406f-b4ed-c5417420ba9d